bitfinex/quotes_BTCUSD_20251215
["timestamp","ask_amount","ask_price","bid_price","bid_amount"]
[1765838094938,0.2907,86246.0,86236.0,0.04544]
[1765838095768,0.0115946,86247.0,86236.0,0.04544]
[1765838095973,0.23189481,86246.0,86236.0,0.04544]
[1765838096199,0.0115946,86247.0,86236.0,0.04544]
[1765838096581,0.01159487,86245.0,86236.0,0.04544]
[1765838096752,0.2907,86243.0,86236.0,0.04544]
[1765838096952,0.30229514,86243.0,86236.0,0.04544]
[1765838097204,0.01159514,86243.0,86236.0,0.04544]
[1765838097368,0.24349586,86244.0,86236.0,0.04544]
[1765838097369,0.011595,86244.0,86236.0,0.04544]
[1765838097810,0.24349717,86245.0,86236.0,0.04544]
[1765838098129,0.01159487,86245.0,86236.0,0.04544]
[1765838098496,0.24348971,86246.0,86236.0,0.04544]
[1765838098698,0.01159487,86245.0,86236.0,0.04544]
[1765838099015,0.24348971,86246.0,86236.0,0.04544]
[1765838099397,0.08391543,86246.0,86236.0,0.04544]
[1765838100070,0.09551017,86246.0,86236.0,0.04544]
[1765838100266,0.01159487,86245.0,86236.0,0.04544]
[1765838100693,0.24349294,86245.0,86236.0,0.04544]
[1765838100893,0.09551017,86246.0,86236.0,0.04544]
[1765838101033,0.23190019,86244.0,86236.0,0.04544]
[1765838101241,0.01159474,86246.0,86236.0,0.04544]
[1765838101598,0.0115946,86247.0,86236.0,0.04544]
[1765838102550,0.24348409,86248.0,86236.0,0.04544]
[1765838102747,0.0125946,86247.0,86236.0,0.04544]
[1765838103484,0.001,86247.0,86236.0,0.04544]
[1765838103688,0.0125946,86247.0,86236.0,0.04544]
[1765838103889,0.3022946,86247.0,86236.0,0.04544]
[1765838104071,0.01159474,86246.0,86236.0,0.04544]
[1765838104274,0.2907,86245.0,86236.0,0.04544]
[1765838105401,0.52259975,86245.0,86236.0,0.04544]
[1765838105611,0.30229487,86245.0,86236.0,0.04544]
[1765838105837,0.24349436,86246.0,86236.0,0.04544]
[1765838105838,0.01159474,86246.0,86236.0,0.04544]
[1765838106038,0.01159474,86246.0,86236.0,0.06995]
[1765838106439,0.5225975,86245.0,86236.0,0.06995]
[1765838106605,0.2907,86244.0,86236.0,0.06995]
[1765838106810,0.2907,86244.0,86236.0,0.02451]
[1765838107030,0.302295,86244.0,86236.0,0.02451]
[1765838108388,0.01159514,86243.0,86236.0,0.02451]
[1765838108590,0.01159527,86242.0,86236.0,0.02451]
[1765838108741,0.302295,86244.0,86236.0,0.02451]
[1765838108940,0.01159514,86243.0,86236.0,0.02451]
[1765838109141,0.53419553,86244.0,86236.0,0.02451]
[1765838109382,0.55926862,86244.0,86236.0,0.02451]
[1765838109583,0.32736809,86244.0,86236.0,0.02451]
[1765838109840,0.302295,86244.0,86236.0,0.02451]
[1765838110512,0.01159514,86243.0,86236.0,0.02451]
[1765838110730,0.302295,86244.0,86236.0,0.02451]
[1765838111378,0.31249003,86244.0,86235.0,0.11658729]
[1765838111579,0.011595,86244.0,86235.0,0.11658729]
[1765838111825,0.01159514,86243.0,86235.0,0.11658729]
[1765838112053,0.01159527,86242.0,86235.0,0.11658729]
[1765838112258,0.01159514,86243.0,86235.0,0.11658729]
[1765838112932,0.00665,86242.0,86235.0,0.11658729]
[1765838114614,0.00665,86242.0,86240.0,0.11647314]
[1765838115819,0.00665,86242.0,86241.0,0.11647314]
[1765838117131,0.00665,86242.0,86236.0,0.02451]
[1765838117332,0.00665,86242.0,86241.0,0.11647314]
[1765838119704,0.00606,86249.0,86241.0,0.16729314]
[1765838120259,0.00606,86249.0,86241.0,0.11647314]
[1765838120906,0.00706,86249.0,86241.0,0.11647314]
[1765838121073,0.00806,86249.0,86241.0,0.11647314]
[1765838121671,0.31035433,86249.0,86241.0,0.11647314]
[1765838121876,0.29876,86249.0,86241.0,0.11647314]
[1765838122282,0.31035433,86249.0,86241.0,0.11647314]
[1765838122914,0.2907,86248.0,86241.0,0.11647314]
[1765838123210,0.31578316,86248.0,86241.0,0.11647314]
[1765838123434,0.2907,86248.0,86241.0,0.11647314]
[1765838123934,0.30229447,86248.0,86241.0,0.11647314]
[1765838124115,0.32837763,86248.0,86241.0,0.11647314]
[1765838124315,0.2927,86248.0,86241.0,0.11647314]
[1765838124518,0.30429447,86248.0,86241.0,0.11647314]
[1765838125219,0.2927,86248.0,86241.0,0.11647314]
[1765838126141,0.30429447,86248.0,86241.0,0.11647314]
[1765838126305,0.24548414,86248.0,86241.0,0.11647314]
[1765838126637,0.0115946,86247.0,86241.0,0.11647314]
[1765838126841,0.24548414,86248.0,86241.0,0.11647314]
[1765838127638,0.24448414,86248.0,86241.0,0.11647314]
[1765838127786,0.001,86247.0,86241.0,0.11647314]
[1765838128563,0.01159474,86246.0,86241.0,0.11647314]
[1765838128722,0.2907,86245.0,86241.0,0.11647314]
[1765838129800,0.2907,86246.0,86241.0,0.11647314]
[1765838130369,0.30229474,86246.0,86241.0,0.11647314]
[1765838130569,0.2907,86246.0,86241.0,0.11647314]
[1765838130791,0.32737776,86247.0,86241.0,0.11647314]
[1765838131016,0.3022946,86247.0,86241.0,0.11647314]
[1765838132347,0.31578316,86248.0,86241.0,0.11647314]
[1765838132493,0.2907,86248.0,86241.0,0.11647314]
[1765838132704,0.30229447,86248.0,86241.0,0.11647314]
[1765838132910,0.001,86247.0,86241.0,0.11647314]
[1765838133173,0.0125946,86247.0,86241.0,0.11647314]
[1765838133288,0.001,86247.0,86241.0,0.11647314]
[1765838133493,0.30229447,86248.0,86241.0,0.11647314]
[1765838133736,0.30429447,86248.0,86241.0,0.11647314]
[1765838133977,0.001,86248.0,86241.0,0.11647314]
[1765838134696,0.0115946,86247.0,86241.0,0.11647314]
[1765838134945,0.3022946,86247.0,86241.0,0.11647314]
[1765838135466,0.0115946,86247.0,86241.0,0.11647314]
[1765838136066,0.2907,86246.0,86241.0,0.11647314]
[1765838136475,0.30229474,86246.0,86241.0,0.11647314]
[1765838136822,0.2907,86246.0,86241.0,0.11647314]
[1765838138070,0.31578316,86247.0,86241.0,0.11647314]
[1765838138207,0.2907,86247.0,86241.0,0.11647314]
[1765838138902,0.00606,86249.0,86241.0,0.11647314]
[1765838139111,0.001,86247.0,86241.0,0.11647314]
[1765838139787,0.32184316,86249.0,86241.0,0.11647314]
[1765838139986,0.32284316,86249.0,86241.0,0.11647314]
[1765838140215,0.2907,86247.0,86241.0,0.11647314]
[1765838140417,0.02508316,86248.0,86241.0,0.11647314]
[1765838140636,0.30229447,86248.0,86241.0,0.11647314]
[1765838140810,0.2907,86248.0,86241.0,0.11647314]
[1765838141954,0.001,86247.0,86246.0,0.11647314]
[1765838142151,0.0004,86257.0,86246.0,0.00161287]
[1765838142280,0.30269326,86257.0,86253.0,0.11647254]
[1765838142490,0.0004,86257.0,86253.0,0.11647193]
[1765838145623,0.03706773,86260.0,86258.0,0.11647193]
[1765838145848,0.02287141,86260.0,86258.0,0.11647193]
[1765838146026,0.01127856,86260.0,86258.0,0.11647193]
[1765838146612,0.0004,86260.0,86258.0,0.11647193]
[1765838147187,0.0014,86260.0,86258.0,0.11647193]
[1765838148864,0.0004,86260.0,86258.0,0.11647193]
[1765838149044,0.0004,86260.0,86259.0,0.08566]
[1765838149250,0.0004,86260.0,86259.0,0.04454399]
[1765838152762,0.0004,86260.0,86259.0,0.15102193]
[1765838152991,0.0004,86260.0,86259.0,0.11647193]
[1765838154666,0.0004,86260.0,86259.0,0.2037448]
[1765838156256,0.0004,86260.0,86259.0,0.2047448]
[1765838156451,0.0004,86260.0,86259.0,0.2067448]
[1765838160574,0.0004,86260.0,86259.0,0.46179064]
[1765838160778,0.0004,86260.0,86259.0,0.44325162]
[1765838161225,0.0004,86260.0,86259.0,0.44125162]
[1765838161448,0.0004,86260.0,86259.0,0.44025162]
[1765838161581,0.0004,86260.0,86259.0,0.44425162]
[1765838161786,0.0004,86260.0,86259.0,0.44225162]
[1765838162181,0.0004,86260.0,86259.0,0.44525162]
[1765838162407,0.0004,86260.0,86259.0,0.45025162]
[1765838163626,0.0004,86260.0,86259.0,0.21839176]
[1765838163973,0.0004,86260.0,86259.0,0.1809548]
[1765838164334,0.0004,86260.0,86259.0,0.2231948]
[1765838164705,0.0004,86260.0,86259.0,0.2028748]
[1765838164857,0.0004,86260.0,86259.0,0.1586348]
[1765838165236,0.0004,86260.0,86259.0,0.1556348]
[1765838165447,0.0004,86260.0,86259.0,0.1586348]
[1765838166027,0.0004,86260.0,86259.0,0.1556348]
[1765838166245,0.0004,86260.0,86259.0,0.1576348]
[1765838166466,0.0004,86260.0,86259.0,0.1230848]
[1765838166851,0.0004,86260.0,86259.0,0.005]
[1765838166852,0.01808,86260.0,86259.0,0.005]
[1765838167383,0.0466313,86260.0,86259.0,0.005]
[1765838167517,0.0466313,86260.0,86259.0,0.002]
[1765838167873,0.0466313,86260.0,86259.0,0.003]
[1765838167874,0.3373313,86260.0,86259.0,0.003]
[1765838168083,0.3373313,86260.0,86259.0,0.001]
[1765838168279,0.0115946,86247.0,86246.0,0.11647193]
[1765838168848,0.24037979,86248.0,86246.0,0.11647193]
[1765838169970,0.24037979,86248.0,86246.0,0.11747193]
[1765838170347,0.00849,86248.0,86246.0,0.11747193]
[1765838170543,0.24004212,86247.0,86246.0,0.001]
[1765838170855,0.24819212,86247.0,86246.0,0.002]
[1765838171075,0.24819212,86247.0,86246.0,0.001]
[1765838171440,0.01159487,86245.0,86241.0,0.11647193]
[1765838171846,0.00797,86245.0,86241.0,0.11647193]
[1765838173267,0.00797,86245.0,86241.0,0.11747193]
[1765838173982,0.00797,86245.0,86241.0,0.11847193]
[1765838174259,0.00849,86248.0,86241.0,0.11847193]
[1765838175062,0.00849,86248.0,86241.0,0.11747193]
[1765838175265,0.00849,86248.0,86241.0,0.11647193]
[1765838175469,0.00849,86248.0,86241.0,0.11847193]
[1765838178051,0.00815957,86248.0,86241.0,0.11847193]
[1765838186309,0.25,86250.0,86249.0,0.11647193]
[1765838186512,0.00511,86254.0,86249.0,0.11647193]
[1765838186672,0.00511,86250.0,86248.0,0.01998798]
[1765838187061,0.00495,86249.0,86248.0,0.01998798]
[1765838187477,0.0099,86249.0,86248.0,0.01998798]
[1765838188081,0.0099,86249.0,86248.0,0.02098798]
[1765838188287,0.0099,86249.0,86248.0,0.02198798]
[1765838188677,0.0099,86249.0,86248.0,0.002]
[1765838191919,0.24178674,86249.0,86248.0,0.002]
[1765838198573,0.0099,86249.0,86248.0,0.002]
[1765838199732,0.24178674,86249.0,86248.0,0.002]
[1765838200077,0.0099,86249.0,86248.0,0.002]
[1765838200780,0.24178674,86249.0,86248.0,0.002]
[1765838202027,0.0099,86249.0,86248.0,0.002]
[1765838202239,0.24178674,86249.0,86248.0,0.002]
[1765838207272,0.07951934,86249.0,86248.0,0.002]
[1765838213354,0.37021934,86249.0,86248.0,0.00185]
[1765838214110,0.37021934,86249.0,86248.0,0.00085]
[1765838214805,0.39528626,86249.0,86248.0,0.00085]
[1765838215004,0.37021934,86249.0,86248.0,0.00085]
[1765838215504,0.2319217,86236.0,86235.0,0.00011415]
[1765838216292,0.5226217,86236.0,86235.0,0.00011415]
[1765838216902,0.5226217,86236.0,86235.0,0.00111415]
[1765838217464,0.5226217,86236.0,86235.0,0.00211415]
[1765838217678,0.54765943,86236.0,86235.0,0.00211415]
[1765838217893,0.5226217,86236.0,86235.0,0.00111415]
[1765838218288,0.63895285,86236.0,86235.0,0.00111415]
[1765838218455,0.63895285,86236.0,86235.0,0.00011415]
[1765838220334,2.67483196,86236.0,86235.0,0.00011415]
[1765838221426,2.67482799,86236.0,86235.0,0.00011415]
[1765838221827,2.67482799,86236.0,86223.0,0.11647193]
[1765838221828,0.30229743,86226.0,86223.0,0.11647353]
[1765838222000,0.53433603,86226.0,86223.0,0.11647353]
[1765838222173,0.2907,86224.0,86223.0,0.11647353]
[1765838222373,0.52265398,86224.0,86223.0,0.11647353]
[1765838222622,0.2907,86224.0,86223.0,0.11647353]
[1765838222803,0.2907,86222.0,86219.0,0.00999399]
[1765838223719,0.53425794,86222.0,86219.0,0.00999399]
[1765838223978,0.24355794,86222.0,86219.0,0.01199399]
[1765838224184,0.23196414,86221.0,86219.0,0.01199399]
[1765838224323,0.24355794,86222.0,86219.0,0.01199399]
[1765838224324,0.24355977,86222.0,86219.0,0.01199399]
[1765838224524,0.24355605,86223.0,86219.0,0.01199399]
[1765838224719,0.01159796,86222.0,86219.0,0.01199399]
[1765838224928,0.01159796,86222.0,86219.0,0.01399399]
[1765838225571,0.23196344,86221.0,86219.0,0.01399399]
[1765838225891,0.23196344,86221.0,86219.0,0.01199399]
[1765838226170,0.23196344,86221.0,86219.0,0.01399399]
[1765838226571,0.01159796,86222.0,86219.0,0.002]
[1765838226775,0.23196412,86221.0,86219.0,0.002]
[1765838227069,0.24355777,86222.0,86219.0,0.004]
[1765838227420,0.24355777,86222.0,86215.0,0.00999399]
[1765838227650,0.01159823,86220.0,86219.0,0.002]
[1765838227888,0.01159823,86220.0,86219.0,0.004]
[1765838228196,0.01159823,86220.0,86219.0,0.002]
[1765838228419,0.24355774,86222.0,86219.0,0.004]
[1765838228607,0.23196364,86221.0,86219.0,0.004]
[1765838228826,0.01159783,86223.0,86219.0,0.002]
[1765838229015,0.01159796,86222.0,86219.0,0.002]
[1765838229216,0.0115981,86221.0,86215.0,0.01199399]
[1765838229384,0.01159837,86219.0,86215.0,0.01199399]
[1765838229582,0.01159823,86220.0,86219.0,0.002]
[1765838229785,0.01159823,86220.0,86219.0,0.11847353]
[1765838229989,0.24356121,86221.0,86220.0,0.11647353]
[1765838230947,0.53426121,86221.0,86220.0,0.11647353]
[1765838231306,0.53426015,86221.0,86220.0,0.11647353]
[1765838231942,0.3022981,86221.0,86220.0,0.11647353]
[1765838232093,0.3022981,86221.0,86220.0,0.11847353]
[1765838232501,0.3022981,86221.0,86220.0,0.12047353]
[1765838232948,0.2907,86221.0,86220.0,0.12047353]
[1765838235022,0.2907,86221.0,86220.0,0.004]
[1765838235533,0.2907,86221.0,86220.0,0.12047353]
[1765838237956,0.2907,86221.0,86220.0,0.004]
[1765838238540,0.2907,86221.0,86220.0,0.12047353]
[1765838239683,0.2907,86221.0,86220.0,0.19901353]
[1765838240095,0.2907,86221.0,86220.0,0.15089353]
[1765838240459,0.2907,86221.0,86220.0,0.12047353]
[1765838246448,0.2907,86221.0,86220.0,0.004]
[1765838247155,0.29078818,86226.0,86224.0,0.11647353]
[1765838248117,8.818e-05,86226.0,86220.0,0.002]
[1765838248346,8.818e-05,86226.0,86224.0,0.002]
[1765838248960,8.818e-05,86226.0,86220.0,0.11847353]
[1765838249374,8.818e-05,86226.0,86220.0,0.11647353]
[1765838249708,8.818e-05,86226.0,86224.0,0.001]
[1765838249909,8.818e-05,86226.0,86220.0,0.11647353]
[1765838250354,8.818e-05,86226.0,86220.0,0.11947353]
[1765838250566,1.2167624,86230.0,86220.0,0.1200864]
[1765838250707,0.01159716,86228.0,86220.0,0.1200864]
[1765838251076,0.24353789,86229.0,86220.0,0.1200864]
[1765838251425,0.24353789,86229.0,86220.0,0.1180864]
[1765838251790,0.01159702,86229.0,86220.0,0.1190864]
[1765838252111,1.2167624,86230.0,86220.0,0.1190864]
[1765838252422,1.2167624,86230.0,86220.0,0.1200864]
[1765838252743,0.01159716,86228.0,86220.0,0.00261287]
[1765838253097,0.01159716,86228.0,86220.0,0.00361287]
[1765838253332,0.01159716,86228.0,86220.0,0.00161287]
[1765838253544,0.01159716,86228.0,86222.0,0.11647353]
[1765838253744,0.94365041,86230.0,86222.0,0.11647353]
[1765838254202,0.9552473,86230.0,86222.0,0.11647353]
[1765838254616,0.01159702,86229.0,86222.0,0.11647353]
[1765838254819,1.18718702,86230.0,86222.0,0.11647353]
[1765838255211,0.53423784,86229.0,86222.0,0.11647353]
[1765838255416,0.2907,86229.0,86220.0,0.00261287]
[1765838255663,0.30229702,86229.0,86221.0,0.02475]
[1765838255896,0.53423769,86229.0,86222.0,0.001]
[1765838256065,0.01159716,86228.0,86221.0,0.02475]
[1765838256424,0.01159716,86228.0,86222.0,0.001]
[1765838256626,0.24354088,86228.0,86222.0,0.002]
[1765838256810,0.53423769,86229.0,86224.0,0.11647353]
[1765838256811,0.2907,86229.0,86224.0,0.11647353]
[1765838257017,0.5226409,86229.0,86224.0,0.11647353]
[1765838257419,0.01159716,86228.0,86224.0,0.11647353]
[1765838257824,0.53423792,86229.0,86224.0,0.11647353]
[1765838258031,0.01159729,86227.0,86224.0,0.11647353]
[1765838258232,0.23195071,86226.0,86224.0,0.11747353]
[1765838258638,0.23195129,86225.0,86224.0,0.11747353]
[1765838258845,0.23195129,86225.0,86224.0,0.001]
[1765838259461,0.01159756,86225.0,86222.0,0.001]
[1765838259662,0.01159756,86225.0,86221.0,0.11647353]
[1765838259865,0.01159756,86225.0,86224.0,0.002]
[1765838260373,0.2907,86225.0,86224.0,0.002]
[1765838260538,0.2907,86225.0,86221.0,0.11647353]
[1765838260737,0.30229756,86225.0,86222.0,0.002]
[1765838260939,0.52265162,86225.0,86222.0,0.002]
[1765838261138,0.53425066,86225.0,86221.0,0.11647353]
[1765838261569,0.53425066,86225.0,86224.0,0.002]
[1765838262567,0.53425066,86225.0,86224.0,0.004]
[1765838263336,0.53425066,86225.0,86224.0,0.002]
[1765838264527,0.53425066,86225.0,86224.0,0.004]
[1765838267905,0.30229756,86225.0,86224.0,0.004]
[1765838268503,0.53424885,86225.0,86224.0,0.004]
[1765838268831,0.30229756,86225.0,86224.0,0.004]
[1765838269125,0.2907,86225.0,86224.0,0.004]
[1765838269550,0.24354633,86226.0,86224.0,0.004]
[1765838269734,0.2907,86225.0,86224.0,0.004]
[1765838270441,0.2907,86225.0,86224.0,0.002]
[1765838270640,0.2907,86225.0,86224.0,0.004]
[1765838270823,0.53424415,86227.0,86224.0,0.004]
[1765838271024,0.2907,86225.0,86224.0,0.004]
[1765838271211,0.2907,86225.0,86224.0,0.002]
[1765838271906,0.2907,86225.0,86224.0,0.11847353]
[1765838272309,0.2907,86225.0,86224.0,0.002]
[1765838272673,0.2907,86225.0,86224.0,0.004]
[1765838272674,0.52265129,86225.0,86224.0,0.004]
[1765838272998,0.23195129,86225.0,86224.0,0.004]
[1765838273249,0.52265129,86225.0,86224.0,0.004]
[1765838273801,0.52265129,86225.0,86224.0,0.12047353]
[1765838274009,0.2907,86225.0,86224.0,0.12047353]
[1765838274873,0.2907,86225.0,86224.0,0.004]
[1765838278436,0.52265129,86225.0,86224.0,0.004]
[1765838279041,0.2907,86225.0,86224.0,0.004]
[1765838280415,0.52265129,86225.0,86224.0,0.004]
[1765838280845,0.2907,86225.0,86224.0,0.22583353]
[1765838281046,0.25,86230.0,86224.0,0.11097287]
[1765838281201,0.01159595,86237.0,86235.0,0.11647353]
[1765838281202,0.01159608,86236.0,86235.0,0.11647353]
[1765838281404,0.24351455,86238.0,86237.0,0.11647353]
[1765838281690,0.2907,86235.0,86234.0,0.11647353]
[1765838282071,0.52262439,86235.0,86234.0,0.11647353]
[1765838282211,0.2907,86235.0,86234.0,0.11647353]
[1765838282407,0.30229621,86235.0,86232.0,0.11647353]
[1765838282607,0.01159635,86234.0,86230.0,0.11647353]
[1765838283243,0.2319448,86228.0,86224.0,0.00161287]
[1765838283447,0.01159729,86227.0,86224.0,0.1180864]
[1765838283976,0.01159729,86227.0,86224.0,0.00161287]
[1765838284197,0.01159702,86229.0,86218.0,0.14122353]
[1765838284198,0.01159743,86226.0,86218.0,0.14122353]
[1765838284496,0.01159743,86226.0,86224.0,0.001]
[1765838284700,0.24354342,86227.0,86224.0,0.001]
[1765838284902,0.23195129,86225.0,86224.0,0.001]
[1765838285543,0.24355209,86224.0,86218.0,0.14122353]
[1765838286567,0.24355209,86224.0,86218.0,0.14322353]
[1765838287058,0.01159769,86224.0,86218.0,0.14322353]
[1765838287910,0.23195673,86223.0,86218.0,0.14322353]
[1765838288213,0.24355875,86222.0,86218.0,0.14322353]
[1765838288514,0.01159783,86223.0,86218.0,0.14322353]
[1765838289273,0.24355228,86224.0,86218.0,0.14322353]
[1765838289467,0.01159769,86224.0,86218.0,0.14522353]
[1765838289621,0.23194896,86226.0,86218.0,0.14522353]
[1765838289830,0.01159756,86225.0,86218.0,0.14322353]
[1765838290192,0.23194896,86226.0,86218.0,0.14122353]
[1765838290396,0.33068517,86225.0,86218.0,0.14322353]
[1765838290899,0.01159783,86223.0,86218.0,0.14322353]
[1765838291097,0.09873242,86225.0,86218.0,0.14322353]
[1765838291298,0.3306849,86225.0,86218.0,0.14322353]
[1765838291612,0.09873242,86225.0,86218.0,0.14122353]
[1765838291814,0.09873242,86225.0,86218.0,0.14322353]
[1765838292010,0.09873242,86225.0,86218.0,0.14522353]
[1765838292218,0.08713486,86225.0,86218.0,0.19289353]
[1765838292421,0.08713486,86225.0,86218.0,0.19089353]
[1765838292862,0.08713486,86225.0,86218.0,0.19289353]
[1765838293066,0.01159716,86228.0,86218.0,0.19289353]
[1765838293700,0.23194237,86229.0,86218.0,0.19289353]
[1765838293939,0.01159716,86228.0,86218.0,0.19089353]
[1765838294153,0.23194237,86229.0,86218.0,0.19089353]
[1765838294366,0.12792831,86228.0,86218.0,0.19089353]
[1765838294952,0.11633115,86228.0,86218.0,0.18889353]
[1765838295361,0.11633115,86228.0,86218.0,0.18989353]
[1765838295765,0.11633115,86228.0,86218.0,0.19089353]
[1765838295961,0.35987184,86228.0,86218.0,0.19089353]
[1765838296384,0.24354363,86227.0,86218.0,0.19089353]
[1765838296897,0.24354679,86226.0,86218.0,0.19089353]
[1765838297097,0.24354679,86226.0,86222.0,0.11647353]
[1765838297302,0.243549,86225.0,86222.0,0.11647353]
[1765838297503,0.01159743,86226.0,86222.0,0.11647353]
[1765838297683,0.01159756,86225.0,86222.0,0.11647353]
[1765838298049,0.23195151,86225.0,86222.0,0.11647353]
[1765838298248,0.01159756,86225.0,86222.0,0.11647353]
[1765838298501,0.24354342,86227.0,86222.0,0.11647353]
[1765838299070,0.01159716,86228.0,86222.0,0.11647353]
[1765838299490,0.01159702,86229.0,86222.0,0.002]
[1765838299692,0.01159716,86228.0,86222.0,0.002]
[1765838299886,0.24354052,86228.0,86222.0,0.002]
[1765838300094,0.01159729,86227.0,86222.0,0.003]
[1765838300294,0.24354052,86228.0,86222.0,0.002]
[1765838300518,0.24353919,86229.0,86222.0,0.002]
[1765838300713,0.01159716,86228.0,86222.0,0.003]
[1765838300921,0.24353919,86229.0,86222.0,0.003]
[1765838301237,0.24353919,86229.0,86222.0,0.001]
[1765838301396,0.01159702,86229.0,86222.0,0.002]
[1765838301726,0.01159716,86228.0,86222.0,0.001]
[1765838302028,0.24354126,86228.0,86218.0,0.18889353]
[1765838302233,0.01159729,86227.0,86222.0,0.002]
[1765838302379,0.01159729,86227.0,86222.0,0.001]
[1765838302588,0.01159729,86227.0,86222.0,0.002]
[1765838302787,0.01159729,86227.0,86222.0,0.001]
[1765838303038,0.24354209,86228.0,86222.0,0.001]
[1765838303281,0.95564356,86230.0,86222.0,0.001]
[1765838303527,0.01159716,86228.0,86222.0,0.001]
[1765838303688,0.01159702,86229.0,86222.0,0.001]
[1765838304114,0.01159702,86229.0,86218.0,0.18889353]
[1765838304309,0.01159716,86228.0,86218.0,0.18889353]
[1765838304524,0.24354074,86228.0,86222.0,0.002]
[1765838304744,0.01159729,86227.0,86222.0,0.002]
[1765838304960,0.01159729,86227.0,86219.0,0.11647353]
[1765838305177,0.24354074,86228.0,86219.0,0.11647353]
[1765838305390,0.01159729,86227.0,86222.0,0.001]
[1765838305820,0.01159729,86227.0,86219.0,0.11647353]
[1765838306021,0.01159729,86227.0,86219.0,0.11747353]
[1765838306242,0.3443633,86228.0,86219.0,0.11847353]
[1765838306543,0.01159729,86227.0,86219.0,0.11847353]
[1765838306748,0.01159729,86227.0,86222.0,0.001]
[1765838306956,0.01159729,86227.0,86219.0,0.11847353]
[1765838307484,0.01159729,86227.0,86219.0,0.11747353]
[1765838307695,0.3443633,86228.0,86219.0,0.11847353]
[1765838307912,0.10082114,86228.0,86227.0,0.11647353]
[1765838308100,0.70564356,86230.0,86228.0,0.11647353]
[1765838308254,0.2907,86230.0,86228.0,0.11647353]
[1765838308460,0.5407,86230.0,86221.0,0.02279]
[1765838308657,0.5407,86230.0,86222.0,0.001]
[1765838308905,0.11633115,86229.0,86222.0,0.001]
[1765838309103,0.11633115,86229.0,86221.0,0.02279]
[1765838309335,0.11633115,86229.0,86228.0,0.001]
[1765838309546,0.11633115,86229.0,86221.0,0.02279]
[1765838310053,0.11633115,86229.0,86222.0,0.001]
[1765838310180,0.09228663,86228.0,86221.0,0.02279]
[1765838311732,0.10388379,86228.0,86222.0,0.001]
[1765838312138,0.01159729,86227.0,86221.0,0.02279]
[1765838312356,0.33582753,86228.0,86221.0,0.02379]
[1765838312533,0.10388379,86228.0,86221.0,0.02379]
[1765838312726,0.10388379,86228.0,86221.0,0.001]
[1765838312727,0.04427601,86227.0,86221.0,0.001]
[1765838312973,0.03267872,86227.0,86214.0,0.13479353]
[1765838313194,0.04432011,86227.0,86215.0,0.02216]
[1765838313328,0.04432011,86227.0,86222.0,0.001]
[1765838313731,0.03272282,86227.0,86222.0,0.001]
[1765838313990,0.08858504,86226.0,86222.0,0.001]
[1765838314547,0.08858504,86226.0,86218.0,0.02216]
[1765838314953,0.08858504,86226.0,86222.0,0.002]
[1765838315586,0.08858504,86226.0,86223.0,0.11647353]
[1765838315746,0.08858504,86226.0,86222.0,0.11947353]
[1765838315946,0.08858504,86226.0,86222.0,0.003]
[1765838316390,0.08858504,86226.0,86222.0,0.001]
[1765838317574,0.08858504,86226.0,86222.0,0.003]
[1765838320026,0.08858504,86226.0,86222.0,0.01299399]
[1765838320232,0.03272282,86227.0,86222.0,0.01299399]
[1765838320633,0.03272282,86227.0,86222.0,0.003]
[1765838320873,4.41e-05,86227.0,86222.0,0.003]
[1765838321174,4.41e-05,86227.0,86222.0,0.001]
[1765838321378,4.41e-05,86227.0,86222.0,0.003]
[1765838321552,4.41e-05,86227.0,86222.0,0.002]
[1765838321761,4.41e-05,86227.0,86222.0,0.003]
[1765838327187,4.41e-05,86227.0,86226.0,0.11647353]
[1765838327472,4.41e-05,86227.0,86224.0,0.11647353]
[1765838327685,4.41e-05,86227.0,86223.0,0.00999399]
[1765838327835,4.41e-05,86227.0,86222.0,0.11947353]
[1765838328039,4.41e-05,86227.0,86222.0,0.002]
[1765838328257,4.41e-05,86227.0,86226.0,0.001]
[1765838328627,4.41e-05,86227.0,86222.0,0.002]
[1765838328902,4.41e-05,86227.0,86222.0,0.003]
[1765838329239,4.41e-05,86227.0,86222.0,0.002]
[1765838329452,4.41e-05,86227.0,86226.0,0.001]
[1765838329920,4.41e-05,86227.0,86226.0,0.003]
[1765838330675,4.41e-05,86227.0,86226.0,0.002]
[1765838331564,4.41e-05,86227.0,86226.0,0.003]
[1765838333604,0.23199001,86227.0,86226.0,0.003]
[1765838333808,4.41e-05,86227.0,86226.0,0.003]
[1765838335510,4.41e-05,86227.0,86226.0,0.11947353]
[1765838335909,4.41e-05,86227.0,86226.0,0.003]
[1765838341664,4.41e-05,86227.0,86226.0,0.03539]
[1765838341845,4.41e-05,86227.0,86226.0,0.19865353]
[1765838342391,4.41e-05,86227.0,86226.0,0.03539]
[1765838342949,4.41e-05,86227.0,86226.0,0.003]
[1765838344118,0.24353036,86232.0,86226.0,0.00461287]
[1765838344952,0.24353036,86232.0,86226.0,0.00161287]
[1765838344953,0.01159662,86232.0,86226.0,0.00161287]
[1765838345170,0.01159675,86231.0,86226.0,0.00261287]
[1765838345389,0.01159662,86232.0,86226.0,0.00361287]
[1765838345390,0.24353066,86232.0,86226.0,0.00361287]
[1765838345818,0.01159662,86232.0,86226.0,0.00361287]
[1765838346099,0.01159675,86231.0,86226.0,0.00261287]
[1765838346303,0.01159662,86232.0,86226.0,0.00261287]
[1765838346846,0.01159662,86232.0,86226.0,0.00161287]
[1765838347081,0.24352662,86233.0,86226.0,0.00261287]
[1765838347350,0.01159662,86232.0,86226.0,0.00361287]
[1765838347521,0.01159648,86233.0,86226.0,0.00261287]
[1765838347935,0.01159662,86232.0,86226.0,0.00161287]
[1765838348131,0.01159662,86232.0,86226.0,0.00261287]
[1765838348300,0.01159662,86232.0,86226.0,0.00361287]
[1765838348733,0.24352662,86233.0,86226.0,0.00261287]
[1765838348936,0.01159662,86232.0,86226.0,0.00361287]
[1765838349343,0.01159662,86232.0,86227.0,0.0213]
[1765838349790,0.24352662,86233.0,86227.0,0.0213]
[1765838350852,0.24352662,86233.0,86227.0,0.0223]
[1765838351053,0.01159662,86232.0,86227.0,0.0213]
[1765838351455,0.24352745,86233.0,86228.0,0.04593]
[1765838351677,0.243524,86234.0,86228.0,0.04593]
[1765838352015,0.23193246,86232.0,86228.0,0.04593]
[1765838352137,0.24352657,86233.0,86228.0,0.04593]
[1765838352498,0.01159662,86232.0,86228.0,0.04593]